[Event "Early-Titled-Tuesday-Blitz-June-18-2024"]
[Site "Chess.com"]
[Date "2024.06.18"]
[Round "7"]
[White "Mikozovna"]
[Black "Pelusiansky"]
[Result "1-0"]
[WhiteElo "2632"]
[BlackElo "2446"]
[TimeControl "180+1"]
[EndTime "9:21:30 PDT"]
[Termination "Mikozovna won on time"]

1. e4 {[%clk 0:03:00.9]} 1... c6 {[%clk 0:03:00.2]} 2. d3 {[%clk 0:02:57.6]}
2... d5 {[%clk 0:02:59.6]} 3. Nd2 {[%clk 0:02:57.8]} 3... g6 {[%clk 0:02:59.5]}
4. Ngf3 {[%clk 0:02:56]} 4... Bg7 {[%clk 0:02:59.9]} 5. d4 {[%clk 0:02:53.7]}
5... dxe4 {[%clk 0:02:57.9]} 6. Nxe4 {[%clk 0:02:54.5]} 6... Nf6 {[%clk
0:02:58.5]} 7. Nxf6+ {[%clk 0:02:54.6]} 7... exf6 {[%clk 0:02:58.9]} 8. Bc4
{[%clk 0:02:48.9]} 8... O-O {[%clk 0:02:56.8]} 9. O-O {[%clk 0:02:48.9]} 9...
Be6 {[%clk 0:02:56.6]} 10. Bxe6 {[%clk 0:02:37.9]} 10... fxe6 {[%clk 0:02:57.5]}
11. Re1 {[%clk 0:02:38.1]} 11... Re8 {[%clk 0:02:57.3]} 12. c3 {[%clk
0:02:38.4]} 12... Nd7 {[%clk 0:02:57]} 13. Qb3 {[%clk 0:02:38.4]} 13... Nb6
{[%clk 0:02:19]} 14. Rxe6 {[%clk 0:02:36.8]} 14... Qd5 {[%clk 0:02:19.7]} 15.
Rxe8+ {[%clk 0:02:28]} 15... Rxe8 {[%clk 0:02:20.6]} 16. Qxd5+ {[%clk
0:02:27.3]} 16... Nxd5 {[%clk 0:02:13.8]} 17. Kf1 {[%clk 0:02:27.2]} 17... g5
{[%clk 0:02:06.2]} 18. a4 {[%clk 0:02:21.5]} 18... h6 {[%clk 0:02:04]} 19. a5
{[%clk 0:02:20.7]} 19... a6 {[%clk 0:02:04.4]} 20. Ra3 {[%clk 0:02:19.3]} 20...
Rd8 {[%clk 0:01:53.9]} 21. Rb3 {[%clk 0:02:17.3]} 21... Rd7 {[%clk 0:01:54.1]}
22. Ne1 {[%clk 0:02:16]} 22... Bf8 {[%clk 0:01:52.3]} 23. Nd3 {[%clk 0:02:14.9]}
23... Bd6 {[%clk 0:01:41.7]} 24. h3 {[%clk 0:02:11.1]} 24... Kf7 {[%clk
0:01:41.5]} 25. Be3 {[%clk 0:02:09.7]} 25... Ne7 {[%clk 0:01:38.9]} 26. Ke2
{[%clk 0:02:05.8]} 26... Ke6 {[%clk 0:01:36]} 27. c4 {[%clk 0:02:00.5]} 27...
Nf5 {[%clk 0:01:28.2]} 28. g4 {[%clk 0:01:58.5]} 28... Ne7 {[%clk 0:01:20]} 29.
Rb6 {[%clk 0:01:57.2]} 29... Kf7 {[%clk 0:01:16.7]} 30. f3 {[%clk 0:01:50.2]}
30... Nc8 {[%clk 0:01:12.6]} 31. Rb3 {[%clk 0:01:49.3]} 31... Ne7 {[%clk
0:01:12.8]} 32. Bd2 {[%clk 0:01:42.3]} 32... Ng6 {[%clk 0:01:06.3]} 33. Nf2
{[%clk 0:01:36.7]} 33... Bb8 {[%clk 0:01:00.5]} 34. Ne4 {[%clk 0:01:35.3]} 34...
Ba7 {[%clk 0:00:59.2]} 35. Be3 {[%clk 0:01:30.3]} 35... Ne7 {[%clk 0:00:54.5]}
36. c5 {[%clk 0:01:26.5]} 36... Bb8 {[%clk 0:00:50.7]} 37. Kd3 {[%clk 0:01:25]}
37... f5 {[%clk 0:00:48.8]} 38. Nd2 {[%clk 0:01:20.3]} 38... Ke6 {[%clk
0:00:40.6]} 39. Nc4 {[%clk 0:01:19.2]} 39... Ng6 {[%clk 0:00:33.8]} 40. Ra3
{[%clk 0:01:13.1]} 40... Ba7 {[%clk 0:00:31.8]} 41. Kc3 {[%clk 0:01:10.7]} 41...
Ne7 {[%clk 0:00:29.4]} 42. b4 {[%clk 0:01:01.2]} 42... Nd5+ {[%clk 0:00:27.8]}
43. Kd3 {[%clk 0:00:58.5]} 43... Nxb4+ {[%clk 0:00:27]} 44. Ke2 {[%clk
0:00:57.2]} 44... Nd5 {[%clk 0:00:27.9]} 45. Rb3 {[%clk 0:00:55.3]} 45... f4
{[%clk 0:00:21.7]} 46. Bf2 {[%clk 0:00:54.1]} 46... Bb8 {[%clk 0:00:22.3]} 47.
Kd3 {[%clk 0:00:51.2]} 47... Kf7 {[%clk 0:00:22.1]} 48. h4 {[%clk 0:00:49.1]}
48... Ne7 {[%clk 0:00:20.5]} 49. hxg5 {[%clk 0:00:47.9]} 49... hxg5 {[%clk
0:00:21.4]} 50. Rb1 {[%clk 0:00:48.1]} 50... Ng6 {[%clk 0:00:21.9]} 51. Rh1
{[%clk 0:00:47.4]} 51... Kg7 {[%clk 0:00:14.9]} 52. Rh5 {[%clk 0:00:46.7]} 52...
Rd5 {[%clk 0:00:15.3]} 53. Nb6 {[%clk 0:00:45.5]} 53... Ne5+ {[%clk 0:00:15.3]}
54. Ke4 {[%clk 0:00:43.6]} 54... Rd8 {[%clk 0:00:11.4]} 55. dxe5 {[%clk
0:00:42.8]} 55... Kg6 {[%clk 0:00:11.4]} 56. Rh1 {[%clk 0:00:41]} 56... Rd2
{[%clk 0:00:11.7]} 57. Rf1 {[%clk 0:00:40.8]} 57... Re2+ {[%clk 0:00:11.9]} 58.
Kd3 {[%clk 0:00:40.8]} 58... Rxe5 {[%clk 0:00:12.6]} 59. Bd4 {[%clk 0:00:40.8]}
59... Re6 {[%clk 0:00:12.6]} 60. Rf2 {[%clk 0:00:41.1]} 60... Bc7 {[%clk
0:00:13.1]} 61. Re2 {[%clk 0:00:41.2]} 61... Kf7 {[%clk 0:00:13.7]} 62. Rxe6
{[%clk 0:00:40.9]} 62... Kxe6 {[%clk 0:00:14.6]} 63. Nc4 {[%clk 0:00:41]} 63...
Bd8 {[%clk 0:00:14.5]} 64. Ke4 {[%clk 0:00:41.1]} 64... Be7 {[%clk 0:00:14.2]}
65. Nd2 {[%clk 0:00:37.1]} 65... Bd8 {[%clk 0:00:13.7]} 66. Nb3 {[%clk
0:00:36.8]} 66... Be7 {[%clk 0:00:14]} 67. Be5 {[%clk 0:00:37.2]} 67... Bd8
{[%clk 0:00:13.5]} 68. Bd6 {[%clk 0:00:37.6]} 68... Bf6 {[%clk 0:00:13.4]} 69.
Nd2 {[%clk 0:00:37.7]} 69... Bd8 {[%clk 0:00:13.3]} 70. Nc4 {[%clk 0:00:37.9]}
70... Bf6 {[%clk 0:00:13.7]} 71. Nd2 {[%clk 0:00:32.2]} 71... Bd8 {[%clk
0:00:13.9]} 72. Nb3 {[%clk 0:00:32.4]} 72... Bf6 {[%clk 0:00:14.2]} 73. Nd4+
{[%clk 0:00:32.6]} 73... Kf7 {[%clk 0:00:11]} 74. Bc7 {[%clk 0:00:31.1]} 74...
Be7 {[%clk 0:00:07.7]} 75. Bb6 {[%clk 0:00:30.8]} 75... Bf6 {[%clk 0:00:07.1]}
76. Nf5 {[%clk 0:00:30.1]} 76... Ke6 {[%clk 0:00:06.9]} 77. Nd6 {[%clk
0:00:30.4]} 1-0

[Event "Early-Titled-Tuesday-Blitz-June-18-2024"]
[Site "Chess.com"]
[Date "2024.06.18"]
[Round "7"]
[White "IlanSchnaider"]
[Black "viktorskliarov"]
[Result "0-1"]
[WhiteElo "2811"]
[BlackElo "2658"]
[TimeControl "180+1"]
[EndTime "9:21:32 PDT"]
[Termination "viktorskliarov won on time"]

1. e4 {[%clk 0:03:00.9]} 1... c5 {[%clk 0:02:59.6]} 2. Nf3 {[%clk 0:03:00]} 2...
Nc6 {[%clk 0:02:58.8]} 3. Bb5 {[%clk 0:02:58.7]} 3... e6 {[%clk 0:02:58.9]} 4.
O-O {[%clk 0:02:57.7]} 4... Nge7 {[%clk 0:02:58.7]} 5. d4 {[%clk 0:02:58.3]}
5... cxd4 {[%clk 0:02:58.7]} 6. Nxd4 {[%clk 0:02:59.2]} 6... Qb6 {[%clk
0:02:58.4]} 7. Nxc6 {[%clk 0:02:58.3]} 7... dxc6 {[%clk 0:02:58.8]} 8. Bd3
{[%clk 0:02:58.8]} 8... e5 {[%clk 0:02:58.5]} 9. Nd2 {[%clk 0:02:55.6]} 9... Ng6
{[%clk 0:02:57.6]} 10. Nc4 {[%clk 0:02:55.9]} 10... Qc7 {[%clk 0:02:57.6]} 11.
a4 {[%clk 0:02:55.3]} 11... Be7 {[%clk 0:02:53]} 12. Kh1 {[%clk 0:02:53]} 12...
O-O {[%clk 0:02:52.3]} 13. a5 {[%clk 0:02:53.2]} 13... Be6 {[%clk 0:02:50.9]}
14. Be3 {[%clk 0:02:53.8]} 14... Nf4 {[%clk 0:02:49.7]} 15. Bxf4 {[%clk
0:02:50.2]} 15... exf4 {[%clk 0:02:49.7]} 16. Qf3 {[%clk 0:02:46.3]} 16... Bf6
{[%clk 0:02:38.9]} 17. e5 {[%clk 0:02:36.6]} 17... Bxc4 {[%clk 0:01:51.4]} 18.
exf6 {[%clk 0:02:24.3]} 18... Bxd3 {[%clk 0:01:38.4]} 19. fxg7 {[%clk
0:02:23.9]} 19... Bxf1 {[%clk 0:01:34.3]} 20. gxf8=Q+ {[%clk 0:02:23.1]} 20...
Kxf8 {[%clk 0:01:34.2]} 21. Rxf1 {[%clk 0:02:22.5]} 21... Qxa5 {[%clk
0:01:20.2]} 22. Qxf4 {[%clk 0:02:22.1]} 22... Qb5 {[%clk 0:01:19.9]} 23. Qd6+
{[%clk 0:01:59.8]} 23... Kg8 {[%clk 0:01:15.4]} 24. Qg3+ {[%clk 0:02:00.1]}
24... Kf8 {[%clk 0:01:12.6]} 25. Qa3+ {[%clk 0:02:00.1]} 25... Kg8 {[%clk
0:01:10.3]} 26. Re1 {[%clk 0:02:00.7]} 26... Qf5 {[%clk 0:00:46.7]} 27. Qg3+
{[%clk 0:01:54.1]} 27... Kf8 {[%clk 0:00:44.6]} 28. Re3 {[%clk 0:01:35.4]} 28...
Rd8 {[%clk 0:00:35.8]} 29. h3 {[%clk 0:01:24]} 29... Qxc2 {[%clk 0:00:33.9]} 30.
Qh4 {[%clk 0:01:05.2]} 30... Qd1+ {[%clk 0:00:31.2]} 31. Kh2 {[%clk 0:01:05.5]}
31... Qd6+ {[%clk 0:00:31.1]} 32. f4 {[%clk 0:01:01.9]} 32... Re8 {[%clk
0:00:29.2]} 33. Rg3 {[%clk 0:00:58.4]} 33... h6 {[%clk 0:00:29.2]} 34. Qg4
{[%clk 0:00:45.4]} 34... Re6 {[%clk 0:00:15.8]} 35. Qf5 {[%clk 0:00:28.4]} 35...
Rg6 {[%clk 0:00:12.1]} 36. Rd3 {[%clk 0:00:22.6]} 36... Qe6 {[%clk 0:00:10.5]}
37. Qc5+ {[%clk 0:00:20.7]} 37... Kg7 {[%clk 0:00:09.9]} 38. f5 {[%clk
0:00:19.7]} 38... Rxg2+ {[%clk 0:00:09.8]} 39. Kxg2 {[%clk 0:00:14.9]} 39...
Qe2+ {[%clk 0:00:09.6]} 40. Kg1 {[%clk 0:00:10.5]} 40... Qxd3 {[%clk 0:00:09.8]}
41. Qe5+ {[%clk 0:00:11.2]} 41... Kg8 {[%clk 0:00:09.3]} 42. Qe8+ {[%clk
0:00:11]} 42... Kg7 {[%clk 0:00:09.8]} 43. Qe5+ {[%clk 0:00:10.6]} 43... Kf8
{[%clk 0:00:09.9]} 44. f6 {[%clk 0:00:09.1]} 44... Qd1+ {[%clk 0:00:09.2]} 45.
Kf2 {[%clk 0:00:07.1]} 45... Qd2+ {[%clk 0:00:09.3]} 46. Kf1 {[%clk 0:00:05.1]}
46... Qd1+ {[%clk 0:00:09.5]} 47. Kf2 {[%clk 0:00:05.5]} 47... Qd2+ {[%clk
0:00:09.8]} 48. Kg1 {[%clk 0:00:02.8]} 48... Qd1+ {[%clk 0:00:10]} 49. Kh2
{[%clk 0:00:02.5]} 49... Qd2+ {[%clk 0:00:10.4]} 50. Kg3 {[%clk 0:00:02.8]}
50... Qg5+ {[%clk 0:00:10]} 51. Qxg5 {[%clk 0:00:02]} 51... hxg5 {[%clk
0:00:10.7]} 52. Kg4 {[%clk 0:00:02.9]} 52... a5 {[%clk 0:00:09.5]} 53. Kxg5
{[%clk 0:00:02.6]} 53... b5 {[%clk 0:00:09.6]} 54. Kf5 {[%clk 0:00:01.9]} 54...
a4 {[%clk 0:00:08.4]} 55. Ke4 {[%clk 0:00:02.5]} 55... c5 {[%clk 0:00:05.7]} 56.
Kd5 {[%clk 0:00:02.2]} 56... c4 {[%clk 0:00:06.2]} 57. Kd4 {[%clk 0:00:01.3]}
57... Kg8 {[%clk 0:00:06.1]} 58. Kc3 {[%clk 0:00:01.3]} 58... Kh7 {[%clk
0:00:06.6]} 59. Kb4 {[%clk 0:00:01.7]} 59... Kg6 {[%clk 0:00:06.9]} 60. Kxb5
{[%clk 0:00:02.4]} 60... c3 {[%clk 0:00:07.2]} 61. bxc3 {[%clk 0:00:02.4]} 61...
a3 {[%clk 0:00:07.7]} 62. c4 {[%clk 0:00:01.9]} 62... a2 {[%clk 0:00:08.6]} 63.
c5 {[%clk 0:00:01.9]} 63... a1=Q {[%clk 0:00:09.5]} 64. c6 {[%clk 0:00:02.4]}
64... Qa8 {[%clk 0:00:09.4]} 65. c7 {[%clk 0:00:01.3]} 65... Qc8 {[%clk
0:00:10.3]} 66. Kc6 {[%clk 0:00:01.9]} 66... Kxf6 {[%clk 0:00:11]} 67. h4 {[%clk
0:00:01.9]} 67... Kg6 {[%clk 0:00:11.4]} 68. Kd6 {[%clk 0:00:02.5]} 68... Kh5
{[%clk 0:00:12.3]} 69. Ke7 {[%clk 0:00:01.7]} 69... Kxh4 {[%clk 0:00:13.2]} 70.
Kxf7 {[%clk 0:00:01.9]} 70... Qxc7+ {[%clk 0:00:13.6]} 71. Kf6 {[%clk
0:00:02.8]} 71... Qd8+ {[%clk 0:00:13.6]} 0-1

[Event "Early-Titled-Tuesday-Blitz-June-18-2024"]
[Site "Chess.com"]
[Date "2024.06.18"]
[Round "7"]
[White "pavelalexandru07"]
[Black "rockstar0902"]
[Result "1-0"]
[WhiteElo "2472"]
[BlackElo "2603"]
[TimeControl "180+1"]
[EndTime "9:21:33 PDT"]
[Termination "pavelalexandru07 won by resignation"]

1. e4 {[%clk 0:03:00.9]} 1... e5 {[%clk 0:02:59]} 2. Nf3 {[%clk 0:03:00.5]} 2...
Nc6 {[%clk 0:02:58.4]} 3. Bb5 {[%clk 0:03:00.6]} 3... a6 {[%clk 0:02:55.4]} 4.
Ba4 {[%clk 0:02:59.4]} 4... Nf6 {[%clk 0:02:55.4]} 5. O-O {[%clk 0:02:59.1]}
5... b5 {[%clk 0:02:55.2]} 6. Bb3 {[%clk 0:02:57]} 6... Bb7 {[%clk 0:02:55.7]}
7. Re1 {[%clk 0:02:54.9]} 7... Bc5 {[%clk 0:02:54.8]} 8. c3 {[%clk 0:02:53.7]}
8... d6 {[%clk 0:02:55.1]} 9. a4 {[%clk 0:02:53.4]} 9... O-O {[%clk 0:02:52.3]}
10. d4 {[%clk 0:02:46.1]} 10... Bb6 {[%clk 0:02:52.3]} 11. Na3 {[%clk
0:02:40.3]} 11... exd4 {[%clk 0:02:29]} 12. cxd4 {[%clk 0:02:38.7]} 12... Nb4
{[%clk 0:02:29.1]} 13. Bg5 {[%clk 0:02:33.9]} 13... h6 {[%clk 0:02:28.5]} 14.
Bxf6 {[%clk 0:02:34]} 14... Qxf6 {[%clk 0:02:29.4]} 15. axb5 {[%clk 0:02:34.3]}
15... axb5 {[%clk 0:02:27.7]} 16. Nxb5 {[%clk 0:02:33]} 16... Rxa1 {[%clk
0:02:20.6]} 17. Qxa1 {[%clk 0:02:32.6]} 17... Bc6 {[%clk 0:02:06.4]} 18. Nc3
{[%clk 0:01:51.6]} 18... Bxd4 {[%clk 0:01:57.1]} 19. Nxd4 {[%clk 0:01:51.1]}
19... Qxd4 {[%clk 0:01:58]} 20. Qd1 {[%clk 0:01:37.1]} 20... Qxd1 {[%clk
0:01:46.5]} 21. Rxd1 {[%clk 0:01:38]} 21... Rb8 {[%clk 0:01:46.4]} 22. f3 {[%clk
0:01:35.8]} 22... Nd3 {[%clk 0:01:43.2]} 23. Rxd3 {[%clk 0:00:57]} 23... Rxb3
{[%clk 0:01:43]} 24. Rd2 {[%clk 0:00:57.7]} 24... Kf8 {[%clk 0:01:36.4]} 25. Kf2
{[%clk 0:00:57.9]} 25... Ke7 {[%clk 0:01:36.6]} 26. Ke1 {[%clk 0:00:58.2]} 26...
Rb8 {[%clk 0:01:35.4]} 27. Kd1 {[%clk 0:00:58.3]} 27... h5 {[%clk 0:01:27.2]}
28. h4 {[%clk 0:00:55]} 28... Rg8 {[%clk 0:01:26]} 29. Nd5+ {[%clk 0:00:52.7]}
29... Kd7 {[%clk 0:01:25]} 30. Nf4 {[%clk 0:00:52.1]} 30... Rh8 {[%clk
0:01:18.2]} 31. Nd3 {[%clk 0:00:45.5]} 31... Ke7 {[%clk 0:01:17.1]} 32. Nb4
{[%clk 0:00:44.3]} 32... Ba4+ {[%clk 0:01:15.2]} 33. Ke2 {[%clk 0:00:43.5]}
33... c6 {[%clk 0:01:11.4]} 34. Ke3 {[%clk 0:00:41.9]} 34... Rb8 {[%clk
0:01:08.9]} 35. Nd3 {[%clk 0:00:37.6]} 35... Rb3 {[%clk 0:01:08.8]} 36. Kf2
{[%clk 0:00:35.2]} 36... Bb5 {[%clk 0:01:08.7]} 37. Nf4 {[%clk 0:00:34.8]} 37...
g6 {[%clk 0:01:09.1]} 38. Rc2 {[%clk 0:00:28.4]} 38... Kd7 {[%clk 0:01:04.1]}
39. Ke1 {[%clk 0:00:21.9]} 39... c5 {[%clk 0:00:55.6]} 40. Nd5 {[%clk
0:00:20.3]} 40... Ba4 {[%clk 0:00:49.1]} 41. Rd2 {[%clk 0:00:20]} 41... Bc6
{[%clk 0:00:44.2]} 42. Nc3 {[%clk 0:00:20.3]} 42... Ke6 {[%clk 0:00:44.3]} 43.
Kf2 {[%clk 0:00:20.3]} 43... Rb8 {[%clk 0:00:42.1]} 44. Ke3 {[%clk 0:00:20.5]}
44... Ra8 {[%clk 0:00:42.3]} 45. Nd5 {[%clk 0:00:20.4]} 45... Ra1 {[%clk
0:00:40.7]} 46. Nf4+ {[%clk 0:00:20.3]} 46... Ke7 {[%clk 0:00:40.5]} 47. Kf2
{[%clk 0:00:20.3]} 47... Rh1 {[%clk 0:00:36.8]} 48. Kg3 {[%clk 0:00:20]} 48...
Rb1 {[%clk 0:00:30.9]} 49. Kf2 {[%clk 0:00:19.9]} 49... Bb7 {[%clk 0:00:22.7]}
50. Ne2 {[%clk 0:00:19.6]} 50... Ke6 {[%clk 0:00:19]} 51. Nc3 {[%clk 0:00:19.9]}
51... Rc1 {[%clk 0:00:19.3]} 52. Nb5 {[%clk 0:00:19.7]} 52... d5 {[%clk
0:00:19]} 53. exd5+ {[%clk 0:00:19.8]} 53... Kd7 {[%clk 0:00:19.4]} 54. Nc3
{[%clk 0:00:19.3]} 54... f5 {[%clk 0:00:18.7]} 55. Na4 {[%clk 0:00:19.1]} 55...
Kd6 {[%clk 0:00:18.2]} 56. Nc3 {[%clk 0:00:19.2]} 56... Ba6 {[%clk 0:00:18.4]}
57. Ke3 {[%clk 0:00:18.5]} 57... Rh1 {[%clk 0:00:17.3]} 58. Kf4 {[%clk
0:00:18.4]} 58... Rxh4+ {[%clk 0:00:15.4]} 59. Kg5 {[%clk 0:00:18.8]} 59... Rh2
{[%clk 0:00:16.3]} 60. Kxg6 {[%clk 0:00:18.2]} 60... h4 {[%clk 0:00:11.2]} 61.
Kxf5 {[%clk 0:00:13]} 61... Bf1 {[%clk 0:00:08.5]} 62. Ne4+ {[%clk 0:00:13.1]}
62... Ke7 {[%clk 0:00:08.6]} 63. d6+ {[%clk 0:00:13.2]} 63... Kd8 {[%clk
0:00:09]} 64. Nxc5 {[%clk 0:00:09.9]} 64... Rxg2 {[%clk 0:00:09.6]} 65. Rxg2
{[%clk 0:00:09.5]} 65... Bxg2 {[%clk 0:00:09.4]} 66. Kg4 {[%clk 0:00:09.4]}
66... h3 {[%clk 0:00:09.5]} 67. Kg3 {[%clk 0:00:09.7]} 67... Bh1 {[%clk
0:00:08.5]} 68. b4 {[%clk 0:00:08.8]} 68... h2 {[%clk 0:00:08]} 69. f4 {[%clk
0:00:08.8]} 69... Bc6 {[%clk 0:00:05.5]} 70. Kxh2 {[%clk 0:00:09]} 1-0

[Event "Early-Titled-Tuesday-Blitz-June-18-2024"]
[Site "Chess.com"]
[Date "2024.06.18"]
[Round "7"]
[White "DinaBelenkaya"]
[Black "LeoLV10"]
[Result "1-0"]
[WhiteElo "2356"]
[BlackElo "2533"]
[TimeControl "180+1"]
[EndTime "9:21:33 PDT"]
[Termination "DinaBelenkaya won by checkmate"]

1. g3 {[%clk 0:02:57.1]} 1... c5 {[%clk 0:02:57.2]} 2. Bg2 {[%clk 0:02:53.6]}
2... Nc6 {[%clk 0:02:55.5]} 3. e4 {[%clk 0:02:53.7]} 3... g6 {[%clk 0:02:55.9]}
4. f4 {[%clk 0:02:53.3]} 4... Bg7 {[%clk 0:02:56.3]} 5. Nf3 {[%clk 0:02:53.6]}
5... e6 {[%clk 0:02:56.9]} 6. d3 {[%clk 0:02:51.7]} 6... Nge7 {[%clk 0:02:56.4]}
7. O-O {[%clk 0:02:51.3]} 7... O-O {[%clk 0:02:55.3]} 8. c3 {[%clk 0:02:46.6]}
8... d5 {[%clk 0:02:55.2]} 9. e5 {[%clk 0:02:46.6]} 9... b5 {[%clk 0:02:51.9]}
10. Nbd2 {[%clk 0:02:43.3]} 10... Bb7 {[%clk 0:02:51.5]} 11. Qe2 {[%clk
0:02:35.6]} 11... Qb6 {[%clk 0:02:50.6]} 12. Kh1 {[%clk 0:02:34.9]} 12... Rac8
{[%clk 0:02:42.7]} 13. Re1 {[%clk 0:02:11.8]} 13... Rfd8 {[%clk 0:02:42]} 14.
Nf1 {[%clk 0:02:11.3]} 14... d4 {[%clk 0:02:41.6]} 15. Ng5 {[%clk 0:02:05]}
15... dxc3 {[%clk 0:02:34.4]} 16. bxc3 {[%clk 0:02:04.9]} 16... Nd5 {[%clk
0:02:34.9]} 17. Bd2 {[%clk 0:02:03.9]} 17... Nce7 {[%clk 0:02:32.3]} 18. Ne4
{[%clk 0:02:01.6]} 18... h6 {[%clk 0:02:32.2]} 19. Nd6 {[%clk 0:01:59.7]} 19...
Rc7 {[%clk 0:02:29.9]} 20. Nxb7 {[%clk 0:01:59]} 20... Rxb7 {[%clk 0:02:26.6]}
21. c4 {[%clk 0:01:59.3]} 21... Nb4 {[%clk 0:02:13.5]} 22. Bxb4 {[%clk
0:01:54.2]} 22... cxb4 {[%clk 0:02:13.8]} 23. Bxb7 {[%clk 0:01:53.7]} 23...
Qxb7+ {[%clk 0:02:13.4]} 24. Qe4 {[%clk 0:01:46.2]} 24... Qxe4+ {[%clk
0:02:02.7]} 25. Rxe4 {[%clk 0:01:47.1]} 25... Rxd3 {[%clk 0:02:02.6]} 26. cxb5
{[%clk 0:01:46.2]} 26... Nd5 {[%clk 0:02:03.2]} 27. Rc4 {[%clk 0:01:40.1]} 27...
Bf8 {[%clk 0:02:01.7]} 28. Rc8 {[%clk 0:01:37.2]} 28... Kg7 {[%clk 0:02:02]} 29.
Rac1 {[%clk 0:01:33.8]} 29... b3 {[%clk 0:01:58.1]} 30. axb3 {[%clk 0:01:32.9]}
30... Rxb3 {[%clk 0:01:59]} 31. Rb8 {[%clk 0:01:24.8]} 31... g5 {[%clk
0:01:52.9]} 32. Nd2 {[%clk 0:01:21]} 32... Rd3 {[%clk 0:01:44.9]} 33. Ne4 {[%clk
0:01:12.5]} 33... gxf4 {[%clk 0:01:39]} 34. gxf4 {[%clk 0:01:09.4]} 34... Nxf4
{[%clk 0:01:39.9]} 35. Rg1+ {[%clk 0:01:07.8]} 35... Ng6 {[%clk 0:01:40.1]} 36.
Rb7 {[%clk 0:00:55.5]} 36... Rd4 {[%clk 0:01:14.9]} 37. Nd6 {[%clk 0:00:55.3]}
37... Bxd6 {[%clk 0:01:11.4]} 38. exd6 {[%clk 0:00:56.2]} 38... Rxd6 {[%clk
0:01:12.1]} 39. Rxa7 {[%clk 0:00:56.4]} 39... Rb6 {[%clk 0:01:12.8]} 40. Rb1
{[%clk 0:00:47.6]} 40... Ne5 {[%clk 0:01:10.1]} 41. Ra6 {[%clk 0:00:47.9]} 41...
Rb7 {[%clk 0:01:10.2]} 42. b6 {[%clk 0:00:42.8]} 42... Nc4 {[%clk 0:01:10]} 43.
Rb4 {[%clk 0:00:41.5]} 43... Nd6 {[%clk 0:01:05.6]} 44. Ra7 {[%clk 0:00:36.2]}
44... Rb8 {[%clk 0:01:06]} 45. Rd7 {[%clk 0:00:29.1]} 45... Nb7 {[%clk
0:00:57.6]} 46. Rf4 {[%clk 0:00:14.5]} 46... Kg6 {[%clk 0:00:54.2]} 47. Rfxf7
{[%clk 0:00:11.9]} 47... Nc5 {[%clk 0:00:54.1]} 48. Rg7+ {[%clk 0:00:11.8]}
48... Kf6 {[%clk 0:00:52.5]} 49. Rdf7+ {[%clk 0:00:10.7]} 49... Ke5 {[%clk
0:00:52.8]} 50. Rc7 {[%clk 0:00:09.8]} 50... Kd6 {[%clk 0:00:52.1]} 51. b7
{[%clk 0:00:08.9]} 51... e5 {[%clk 0:00:50.4]} 52. Kg2 {[%clk 0:00:08.9]} 52...
e4 {[%clk 0:00:50.4]} 53. Kf2 {[%clk 0:00:08.9]} 53... Rf8+ {[%clk 0:00:48.6]}
54. Ke3 {[%clk 0:00:08.9]} 54... Rf3+ {[%clk 0:00:48.4]} 55. Ke2 {[%clk
0:00:09.3]} 55... Rb3 {[%clk 0:00:48.4]} 56. Rcf7 {[%clk 0:00:08.7]} 56... Ke5
{[%clk 0:00:39.9]} 57. Re7+ {[%clk 0:00:08.3]} 57... Kd4 {[%clk 0:00:40.1]} 58.
Rg6 {[%clk 0:00:03.3]} 58... Rb2+ {[%clk 0:00:39.3]} 59. Kd1 {[%clk 0:00:03.6]}
59... Nd3 {[%clk 0:00:36.8]} 60. Rd6+ {[%clk 0:00:03.8]} 60... Ke3 {[%clk
0:00:37.1]} 61. Rxd3+ {[%clk 0:00:03.4]} 61... Kxd3 {[%clk 0:00:37.4]} 62. Rd7+
{[%clk 0:00:04]} 62... Ke3 {[%clk 0:00:37.9]} 63. Rf7 {[%clk 0:00:02.3]} 63...
Rb6 {[%clk 0:00:34.6]} 64. Rd7 {[%clk 0:00:02.5]} 64... Rb1+ {[%clk 0:00:30.9]}
65. Kc2 {[%clk 0:00:02.3]} 65... Rb5 {[%clk 0:00:31.7]} 66. Kd1 {[%clk
0:00:02.3]} 66... h5 {[%clk 0:00:32.2]} 67. Rf7 {[%clk 0:00:02]} 67... Rb3
{[%clk 0:00:28.5]} 68. Rd7 {[%clk 0:00:01.8]} 68... h4 {[%clk 0:00:27.1]} 69. h3
{[%clk 0:00:02.4]} 69... Kf3 {[%clk 0:00:25.9]} 70. Rf7+ {[%clk 0:00:03]} 70...
Kg3 {[%clk 0:00:26]} 71. Re7 {[%clk 0:00:02.8]} 71... Rxb7 {[%clk 0:00:20.9]}
72. Rxb7 {[%clk 0:00:02.1]} 72... Kxh3 {[%clk 0:00:19.8]} 73. Ke2 {[%clk
0:00:03]} 73... Kg2 {[%clk 0:00:19.6]} 74. Rg7+ {[%clk 0:00:03.9]} 74... Kh2
{[%clk 0:00:18]} 75. Kf2 {[%clk 0:00:04.3]} 75... h3 {[%clk 0:00:18.6]} 76. Rg3
{[%clk 0:00:04]} 76... e3+ {[%clk 0:00:18.2]} 77. Rxe3 {[%clk 0:00:04.2]} 77...
Kh1 {[%clk 0:00:07.4]} 78. Rxh3# {[%clk 0:00:05.1]} 1-0